Cogmind - Beta 12 @@@ ROGUE MODE // 2024.01.03 @ 22:13:36 // Winter2019/RPGLIKE Player: badjay Result: Destroyed by G-50 Soldier with Heavy Laser Performance ------------- Evolutions (4) 2000 Regions Visited (7) 1400 Robots Destroyed (14) 70 Value Destroyed (503) 503 Prototype IDs (5) 100 Alien Tech Used (0) 0 Bonus (0) 0 TOTAL SCORE: 4073 Bonus ------- None Cogmind --------- Core Integrity 0/600 Matter 235/300 Energy 160/160 System Corruption 3% Temperature Cool (9) Movement Flying (28) Location -6/Extension Parts ------- > --- POWER (2) -------- Light Fission Core > --- PROPULSION (4) --- Flight Unit Flight Unit Cooled VTOL Module Cooled VTOL Module > --- UTILITY (6) ------ Advanced Sensor Array Targeting Computer Reaction Control System Experimental Utility Shielding Hacking Suite Hacking Suite > --- WEAPON (2) ------- Lightning Gun > --- INVENTORY (1) ---- Improved Target Analyzer Peak State ------------ > --- POWER ------------ Light Fission Core > --- PROPULSION ------- Flight Unit Flight Unit Cooled VTOL Module Cooled VTOL Module > --- UTILITY ---------- Advanced Sensor Array Targeting Computer Reaction Control System Experimental Utility Shielding Hacking Suite Hacking Suite > --- WEAPON ----------- Lightning Gun Lightning Gun > --- INVENTORY -------- (None) [Rating: 46] Favorites ----------- Power Light Ion Engine Engine Light Ion Engine Power Core Light Fission Core Propulsion Flight Unit Hover Unit Hover Unit Flight Unit Flight Unit Utility Hacking Suite Device Reaction Control System Processor Targeting Computer Hackware Hacking Suite Protection Experimental Utility Shielding Weapon Lightning Gun Energy Gun Lightning Gun Piercing Weapon Makeshift Spear Build | -11 -10 -10 -9 -8 -7 -6 -6 ------- Run | Jun Mat Min Mat Mat Fac Fac Ext Slots Evolved 10 | 5 . . 1 1 1 2 . Power 1 | 1 . . . . . . . Propulsion 3 | 2 . . . . . 1 . Utility 5 | 1 . . 1 1 1 1 . Weapon 1 | 1 . . . . . . . Parts Attached 32 | 1 4 6 4 2 5 10 . Power 4 | . 1 2 . . . 1 . Engine 2 | . . 2 . . . . . Core 2 | . 1 . . . . 1 . Reactor . | . . . . . . . . Propulsion 8 | . 1 3 . . . 4 . Treads . | . . . . . . . . Leg . | . . . . . . . . Wheel . | . . . . . . . . Hover 1 | . 1 . . . . . . Flight 7 | . . 3 . . . 4 . Utility 9 | . 2 . 2 1 2 2 . Device 4 | . 1 . 2 . . 1 . Storage . | . . . . . . . . Processor 1 | . 1 . . . . . . Hackware 2 | . . . . 1 1 . . Protection 2 | . . . . . 1 1 . Artifact . | . . . . . . . . Weapon 11 | 1 . 1 2 1 3 3 . Energy Gun 9 | 1 . . 1 1 3 3 . Energy Cannon . | . . . . . . . . Ballistic Gun . | . . . . . . . . Ballistic Cannon . | . . . . . . . . Launcher . | . . . . . . . . Special Weapon . | . . . . . . . . Impact Weapon . | . . . . . . . . Slashing Weapon . | . . . . . . . . Piercing Weapon 2 | . . 1 1 . . . . Special Melee Weapon . | . . . . . . . . Unidentified Prototypes 5 | . . . . . 1 4 . Parts Lost 2 | . . . . . . 1 1 Power . | . . . . . . . . Propulsion . | . . . . . . . . Utility . | . . . . . . . . Weapon 2 | . . . . . . 1 1 Highest Loss Streak 1 | . . . . . . 1 1 To Critical Strikes . | . . . . . . . . Average Slot Usage (%) 80 | . 33 79 93 90 90 84 92 Engine 11 | . . 13 20 18 16 1 . Core 2 | . 5 2 . . . 6 7 Flight 22 | . . 22 30 27 25 26 28 Device 13 | . 2 11 19 18 16 11 14 Processor 9 | . 11 11 10 9 8 7 7 Hackware 7 | . . . . 8 14 14 14 Energy Gun 10 | . 11 11 10 9 8 12 14 Piercing Weapon 1 | . . 4 4 . . . . Naked Turns . | . . . . . . . . Heaviest Build 18 | 2 8 11 12 11 12 18 18 Greatest Support 22 | 3 6 12 12 12 12 22 18 Greatest Overweight (x) 2 | . 2 1 . . . . . Average Overweight (x) . | . . . . . . . . Largest Inventory Capacity 1 | . . . . 1 1 1 1 Average Capacity . | . . . . . 1 1 1 Most Carried 1 | . . . . 1 1 1 1 Average Carried . | . . . . . . . 1 Final Capacity 1 | . . . . 1 1 1 1 Final Carried 1 | . . . . 1 1 1 1 Class Distribution -------------------- 40% | Scavenger-Mutant 24% | Hacker-Mutant 18% | Hacker-Sprinter 17% | Mutant Dominant Class ---------------- Mutant | -10/Materials Scavenger-Mutant | -10/Mines Scavenger-Mutant | -9/Materials Scavenger-Mutant | -8/Materials Hacker-Mutant | -7/Factory Hacker-Sprinter | -6/Factory Hacker-Sprinter | -6/Extension Resources | -11 -10 -10 -9 -8 -7 -6 -6 ----------- Run | Jun Mat Min Mat Mat Fac Fac Ext Matter Collected 500 | 113 137 60 40 20 50 80 . Remotely . | . . . . . . . . Salvage Created 631 | . . . 109 82 176 264 . Parts 31 | . 1 . 10 3 7 10 . Haulers Intercepted 2 | . . . . . . 2 . Recyclers Shooed . | . . . . . . . . Parts Field Recycled . | . . . . . . . . Retrieved Matter . | . . . . . . . . Parts Self-Destructed . | . . . . . . . . Prevented . | . . . . . . . . Kills | -11 -10 -10 -9 -8 -7 -6 -6 ------- Run | Jun Mat Min Mat Mat Fac Fac Ext Combat Hostiles Destroyed 7 | . 1 . 2 1 1 2 . Guns 5 | . 1 . 2 1 1 . . AOE 2 | . . . . . . 2 . Classes Destroyed 5 | . 1 . 1 1 . 2 . Hauler 2 | . . . . . . 2 . Watcher 5 | . . . 2 . 3 . . Grunt 4 | . 1 . 2 . 1 . . Sentry 1 | . . . . 1 . . . Hunter 2 | . . . . . . 2 . Best Kill Streak 3 | . 1 . 3 1 2 3 . Combat Bots Only 2 | . 1 . 2 1 1 2 . Max Kills in Single Turn 3 | . 1 . 1 1 1 3 . Gunslinging . | . . . . . . . . Exploded 2 | . . . . . . 2 . Melee . | . . . . . . . . Uniques/NPCs Destroyed . | . . . . . . . . Combat | -11 -10 -10 -9 -8 -7 -6 -6 -------- Run | Jun Mat Min Mat Mat Fac Fac Ext Damage Taken 1032 | . 41 49 113 61 102 646 20 Core 798 | . 39 37 89 47 83 487 16 Absorbed by Shields . | . . . . . . . . Redirected to Core 613 | . 8 37 78 47 69 358 16 Redirected to Shielding 53 | . . . . . . 53 . Core Remaining (%) 89 | 100 . 100 93 85 71 . . Volleys Fired 49 | . 4 . 13 4 15 13 . Largest 2 | . 1 . 1 1 1 2 . Hottest 110 | . 40 . 45 50 55 110 . Shots Fired 55 | . 4 . 13 4 15 19 . Gun 55 | . 4 . 13 4 15 19 . Cannon . | . . . . . . . . Launcher . | . . . . . . . . Special . | . . . . . . . . Kinetic . | . . . . . . . . Thermal . | . . . . . . . . Explosive . | . . . . . . . . Electromagnetic 55 | . 4 . 13 4 15 19 . Robot Hit Streak 6 | . 4 . 6 5 4 4 . Robot Miss Streak 3 | . . . 1 . 3 3 . Penetration Max . | . . . . . . . . Secondary Targets . | . . . . . . . . Shots Hit Robots 36 | . 4 . 9 4 9 10 . Core Hits 21 | . 2 . 4 2 5 8 . Critical Kills . | . . . . . . . . Critical Parts Destroyed . | . . . . . . . . Critical Strikes 1 | . . . . . . 1 . Corrupt 1 | . . . . . . 1 . Melee Attacks . | . . . . . . . . Impact . | . . . . . . . . Slashing . | . . . . . . . . Piercing . | . . . . . . . . Sneak Attacks . | . . . . . . . . Combat Hostiles . | . . . . . . . . Follow-up Attacks . | . . . . . . . . Damage Inflicted 1019 | . 52 . 159 60 240 508 . Guns 774 | . 52 . 159 60 240 263 . Cannons . | . . . . . . . . Explosions 245 | . . . . . . 245 . Melee . | . . . . . . . . Ramming . | . . . . . . . . Kinetic . | . . . . . . . . Thermal 245 | . . . . . . 245 . Explosive . | . . . . . . . . Electromagnetic 774 | . 52 . 159 60 240 263 . Impact . | . . . . . . . . Slashing . | . . . . . . . . Piercing . | . . . . . . . . Highest Corruption 3 | . . . . . . 3 3 Average Corruption 3 | . . . . . . 3 3 Corruption Purged . | . . . . . . . . Corruption Blocked . | . . . . . . . . Effects 1 | . . . . . . 1 . Parts Rejected 1 | . . . . . . 1 . Overload Shots . | . . . . . . . . Overflow Damage . | . . . . . . . . Projectiles . | . . . . . . . . Explosions . | . . . . . . . . Melee . | . . . . . . . . Knockbacks . | . . . . . . . . Impact . | . . . . . . . . Kinetic . | . . . . . . . . Secondary . | . . . . . . . . Self-Inflicted Damage . | . . . . . . . . Shots . | . . . . . . . . Rammed . | . . . . . . . . Targets Rammed . | . . . . . . . . Kicked . | . . . . . . . . Crushed . | . . . . . . . . Highest Temperature 444 | . 17 . 118 119 186 444 2 Average Temperature 106 | . 10 . 44 59 106 180 1 Received Heat Transfer 135 | . 18 . 54 18 36 . 9 Effects 7 | . . . . . . 7 . Shutdowns 2 | . . . . . . 2 . Energy Bleed 2 | . . . . . . 2 . Interference 2 | . . . . . . 2 . Matter Decay 1 | . . . . . . 1 . Siege Activations . | . . . . . . . . Robots Corrupted . | . . . . . . . . Combat Hostiles . | . . . . . . . . Parts Fried 5 | . . . . . 3 2 . Impact Corruptions . | . . . . . . . . Robots Melted . | . . . . . . . . Combat Hostiles . | . . . . . . . . Parts Melted 1 | . . . . . . 1 . Heat Transferred 150 | . . . . . . 150 . Parts Sabotaged . | . . . . . . . . Parts Stolen . | . . . . . . . . Parts Stripped . | . . . . . . . . Power Chain Reactions . | . . . . . . . . Missiles Intercepted . | . . . . . . . . Alert | -11 -10 -10 -9 -8 -7 -6 -6 ------- Run | Jun Mat Min Mat Mat Fac Fac Ext Peak Influence 385 | . 46 32 305 279 317 385 205 Initial 188 | . . 17 12 128 126 154 188 Average 139 | . 29 25 157 181 173 233 192 Maximum Alert Level 1 | . . . 1 1 1 1 1 Low Security (%) 76 | 100 100 100 54 73 73 57 77 Level 1 23 | . . . 45 26 26 42 22 Level 2 . | . . . . . . . . Level 3 . | . . . . . . . . Level 4 . | . . . . . . . . Level 5 . | . . . . . . . . High Security . | . . . . . . . . Max Security . | . . . . . . . . Squads Dispatched 8 | . 1 . 3 1 2 1 . Investigation 1 | . . . . 1 . . . Extermination . | . . . . . . . . Reinforcement 7 | . 1 . 3 . 2 1 . Assault . | . . . . . . . . Garrison . | . . . . . . . . Intercept . | . . . . . . . . Searches Triggered . | . . . . . . . . Construction Impeded . | . . . . . . . . Haulers Reinforced 1 | . . . . . . 1 . Active Scanning Responses . | . . . . . . . . Cargo Convoy Interrupts . | . . . . . . . . Stealth | -11 -10 -10 -9 -8 -7 -6 -6 --------- Run | Jun Mat Min Mat Mat Fac Fac Ext Distress Signals 1 | . . . 1 . . . . Communications Jammed . | . . . . . . . . Distress Signals . | . . . . . . . . Times Spotted 49 | . 3 5 19 4 10 6 2 Peak Tracking Total 11 | . 4 5 11 3 5 4 . Tactical Retreats 8 | . . . 2 3 1 2 . Traps | -11 -10 -10 -9 -8 -7 -6 -6 ------- Run | Jun Mat Min Mat Mat Fac Fac Ext Traps Triggered 2 | . . . . 1 1 . . Indirectly . | . . . . . . . . Trap Hack Attempts . | . . . . . . . . Triggered . | . . . . . . . . Disarmed . | . . . . . . . . Reprogrammed . | . . . . . . . . Reused . | . . . . . . . . Traps Extracted . | . . . . . . . . Installed . | . . . . . . . . Triggered . | . . . . . . . . Machines | -11 -10 -10 -9 -8 -7 -6 -6 ---------- Run | Jun Mat Min Mat Mat Fac Fac Ext Machines Disabled 4 | . . . . . . 4 . Max in Single Turn 3 | . . . . . . 3 . Machines Repaired . | . . . . . . . . Machines Sabotaged . | . . . . . . . . Overloaded Fab Kills . | . . . . . . . . Hacking | -11 -10 -10 -9 -8 -7 -6 -6 --------- Run | Jun Mat Min Mat Mat Fac Fac Ext Machines Accessed 19 | . 1 . 4 5 5 2 2 Terminals 18 | . 1 . 4 5 4 2 2 Fabricators . | . . . . . . . . Repair Stations . | . . . . . . . . Recycling Units . | . . . . . . . . Scanalyzers . | . . . . . . . . Garrison Access 1 | . . . . . 1 . . Total Hacks 51 | . 6 . 10 18 8 3 6 Successful 29 | . 4 . 6 10 4 2 3 Failed 22 | . 2 . 4 8 4 1 3 Catastrophic 3 | . . . 1 1 1 . . Database Lockouts . | . . . . . . . . Manual 33 | . 6 . 8 11 1 2 5 Terminals 49 | . 6 . 10 18 6 3 6 Fabricators . | . . . . . . . . Repair Stations . | . . . . . . . . Recycling Units . | . . . . . . . . Scanalyzers . | . . . . . . . . Garrison Access 2 | . . . . . 2 . . Terminal Hacks 12 | . 1 . 1 5 3 1 1 Open Door 1 | . . . . . . 1 . Open DSF 1 | . . . . . 1 . . Level Access Points 2 | . . . . 1 1 . . Branch Access Points 2 | . . . . 1 1 . . Terminal Index 1 | . . . . 1 . . . Alert Level 2 | . . . . 1 . . 1 Zone Layout 3 | . 1 . 1 1 . . . Fabricator Hacks . | . . . . . . . . Repair Station Hacks . | . . . . . . . . Recycling Unit Hacks . | . . . . . . . . Scanalyzer . | . . . . . . . . Garrison Access Hacks . | . . . . . . . . Unauthorized Hacks 17 | . 3 . 5 5 1 1 2 Terminals 17 | . 3 . 5 5 1 1 2 Track 4 | . 1 . 1 1 . . 1 Botnet 9 | . 1 . 3 3 1 . 1 Disrupt 1 | . . . . . . 1 . Operators 3 | . 1 . 1 1 . . . Fabricators . | . . . . . . . . Repair Stations . | . . . . . . . . Recycling Units . | . . . . . . . . Scanalyzers . | . . . . . . . . Garrison Access . | . . . . . . . . Data Cores Recovered . | . . . . . . . . Used . | . . . . . . . . Hacking Detections 17 | . 1 . 4 5 4 1 2 Full Trace Events . | . . . . . . . . Feedback Events . | . . . . . . . . Feedback Blocked . | . . . . . . . . Robot Schematics Acquired . | . . . . . . . . Robots Built . | . . . . . . . . Authchips . | . . . . . . . . Time . | . . . . . . . . Total Robot Build Rating . | . . . . . . . . Part Schematics Acquired . | . . . . . . . . Parts Built . | . . . . . . . . Authchips . | . . . . . . . . Time . | . . . . . . . . Total Part Build Rating . | . . . . . . . . Parts Repaired . | . . . . . . . . Time . | . . . . . . . . Parts Recycled . | . . . . . . . . Recycled Matter . | . . . . . . . . Retrieved Matter . | . . . . . . . . Retrieved Components . | . . . . . . . . Parts Scanalyzed . | . . . . . . . . Part Schematics Acquired . | . . . . . . . . Parts Damaged . | . . . . . . . . Bothacking | -11 -10 -10 -9 -8 -7 -6 -6 ------------ Run | Jun Mat Min Mat Mat Fac Fac Ext Used RIF Installer . | . . . . . . . . Robots Hacked . | . . . . . . . . Non-combat . | . . . . . . . . Combat . | . . . . . . . . Robot Hacks Applied . | . . . . . . . . Relay Couplers Released . | . . . . . . . . Fabnet Peak Effective % . | . . . . . . . . Robots Rewired . | . . . . . . . . Allies Hacked . | . . . . . . . . Hacks Repelled . | . . . . . . . . Allies | -11 -10 -10 -9 -8 -7 -6 -6 -------- Run | Jun Mat Min Mat Mat Fac Fac Ext Total Allies . | . . . . . . . . Largest Group . | . . . . . . . . Highest-Rated Group . | . . . . . . . . Highest-Rated Ally . | . . . . . . . . Total Orders . | . . . . . . . . Ally Attacks . | . . . . . . . . Total Damage . | . . . . . . . . Kills . | . . . . . . . . Allies Corrupted . | . . . . . . . . Allies Melted . | . . . . . . . . Intel | -11 -10 -10 -9 -8 -7 -6 -6 ------- Run | Jun Mat Min Mat Mat Fac Fac Ext Robot Analysis Total . | . . . . . . . . Derelict Logs Recovered 1 | . . 1 . . . . . Drone Launches . | . . . . . . . . Drone Recoveries . | . . . . . . . . Exploration | -11 -10 -10 -9 -8 -7 -6 -6 ------------- Run | Jun Mat Min Mat Mat Fac Fac Ext Turns Passed 963 | 13 119 148 126 119 266 154 18 Spaces Moved 1838 | 23 93 209 256 303 598 295 61 Core 94 | 23 71 . . . . . . Treads . | . . . . . . . . Legs . | . . . . . . . . Wheels . | . . . . . . . . Hover 45 | . 22 23 . . . . . Flight 1699 | . . 186 256 303 598 295 61 Fastest Speed 21 | 50 50 34 34 34 34 21 28 Average Speed 37 | 50 88 45 34 34 34 28 28 Slowest Speed 150 | 50 150 120 34 34 34 34 28 Overloaded Moves 32 | . . . . . . 32 . Propulsion Burnouts . | . . . . . . . . Robots Hopped 10 | . . . 2 2 5 1 . Cave-ins Triggered . | . . . . . . . . Exploration Rate (%) 20 | 3 15 37 42 26 20 12 9 Regions Visited 7 Branch Regions 2 Pre-discovered Areas . | . . . . . . . . Known Exits Taken 2 | . . . . 1 1 . . Unknown Exits Taken 5 | 1 1 1 1 . . 1 . Scrap Searched . | . . . . . . . . Spaces Dug . | . . . . . . . . Terrain Destroyed 29 | . . . . . . 29 . Melee . | . . . . . . . . Projectile . | . . . . . . . . AOE 29 | . . . . . . 29 . Terrain Rammed . | . . . . . . . . Walls Destroyed . | . . . . . . . . Machines Disabled . | . . . . . . . . Actions | -11 -10 -10 -9 -8 -7 -6 -6 --------- Run | Jun Mat Min Mat Mat Fac Fac Ext Total 2037 | 23 124 258 279 311 640 341 61 Wait 83 | . 24 38 1 4 2 14 . Move 1812 | 22 92 208 251 298 588 292 61 Hop 9 | . . . 2 2 4 1 . Pick Up 3 | . . . . . 2 1 . Fast Attach 32 | 1 4 6 4 2 5 10 . Attach 1 | . . . . . . 1 . Detach 1 | . . . . 1 . . . Swap . | . . . . . . . . Drop 18 | . . 2 4 . 6 6 . Fire 49 | . 4 . 13 4 15 13 . Melee . | . . . . . . . . Ram . | . . . . . . . . Kick . | . . . . . . . . Crush . | . . . . . . . . Escape Stasis 18 | . . . . . 18 . . Rewire . | . . . . . . . . Trap . | . . . . . . . . Miscellaneous 11 | . . 4 4 . . 3 . Route ------- -11/Junkyard -10/Materials -10/Mines (discovered 2 exits: *Mat / [*Exi]) -9/Materials -8/Materials (discovered 5 exits: *Fac x3 / Sto x2) -7/Factory (discovered 6 exits: *Fac x4 / Low x2) -6/Factory -6/Extension History --------- Turn | Location | Event 2 | -11/Junkyard | Discovered new exit (range 16) 12 | -11/Junkyard | Upgraded with Power slot (x1) 12 | -11/Junkyard | Upgraded with Propulsion slot (x2) 12 | -11/Junkyard | Upgraded with Utility slot (x1) 12 | -11/Junkyard | Upgraded with Weapon slot (x1) 14 | -11/Junkyard | Entered Materials 32 | -10/Materials | Discovered new exit (range 10) 82 | -10/Materials | Met 8R-AWN 133 | -10/Materials | Entered Mines 134 | -10/Mines | Followed 8R-AWN into the Mines 157 | -10/Mines | Met a Derelict bent on vengeance 178 | -10/Mines | Found a hidden stash of uninstalled traps 193 | -10/Mines | Joined a pair of Derelicts in attacking an 0b10 outpost 199 | -10/Mines | Learned Materials emergency access door positions 227 | -10/Mines | A weapon hastily lodged in a ceiling crevice suddenly fell to the ground 278 | -10/Mines | Discovered new exit (range 8) 278 | -10/Mines | Discovered new exit (range 5) 281 | -10/Mines | Entered Materials 283 | -9/Materials | Reached level 2 287 | -9/Materials | Upgraded with Utility slot (x1) 400 | -9/Materials | Discovered new exit (range 16) 407 | -9/Materials | Entered another Materials area 409 | -8/Materials | Reached level 3 410 | -8/Materials | Upgraded with Utility slot (x1) 418 | -8/Materials | Identified exit to Storage 485 | -8/Materials | Discovered new exit (range 14) 490 | -8/Materials | Build established: Scavenger-Mutant 504 | -8/Materials | Identified exit to Factory 526 | -8/Materials | Entered Factory 528 | -7/Factory | Reached level 4 530 | -7/Factory | Upgraded with Utility slot (x1) 709 | -7/Factory | Identified exit to Lower Caves 721 | -7/Factory | Identified exit to Factory 749 | -7/Factory | Reached level 5 792 | -7/Factory | Entered another Factory area 794 | -6/Factory | Reached level 6 799 | -6/Factory | Upgraded with Propulsion slot (x1) 799 | -6/Factory | Upgraded with Utility slot (x1) 876 | -6/Factory | Core integrity fell below 50% 902 | -6/Factory | Core integrity fell below 20% 945 | -6/Factory | Discovered new exit (range 6) 946 | -6/Factory | Entered Extension 948 | -6/Extension | Reached level 7 964 | -6/Extension | Destroyed by G-50 Soldier with Heavy Laser Last Messages --------------- GOAL=ESCAPE 00948_ Reached level 7. 00950_ Upgraded: Sight Range (+2) 00950_ Upgraded: Ranged Accuracy (+10) 00955_ Connecting with Terminal... 00955_ Current location identified: Extension >>Alert(Check) Current Alert Level: Low Security >>Trojan(Botnet) Trojan loaded successfully. Testing... Terminal linked with 0 systems. Awaiting botnet instructions. >>Trojan(Track) Trojan loaded successfully. Testing... Tracking enabled and active. 00957_ Connecting with Terminal... 00964_ G-50 Soldier springs to life. 00964_ Lightning Gun destroyed. Map ----- +----------------------------------------------------+ | | | | | | | | | | | | | | | | | | | ??????????????????????????????????? | | ??????????????????????????????????? | | ??????????????????????????????????? | | ??????????????????????????????????? | | ??????????????????????????????????? | | ??????????????????????????????????? | | ??????????????????????????????????? | | ??????????????????????????????????? | | ????????????????????##+##?????????? | | ???????????????????? #????????? | | ????????????????????? #????????? | | ????????????????????? ????????? | | ??########??????????? ?????????? | | ??# #??????????? ? ??????????? | | ??# g g #???????????# #??????????? | | ??# b= #############?#??????????? | | ??# b=g /@ #??????????? | | ??# ##" ###########??????????? | | ??# ##"T#????????????????????? | | ??####+#######????????????????????? | | ????# #?????????????????????????? | | ????# T #?????????????????????????? | | ????# #?????????????????????????? | | ????## ##?????????????????????????? | | ?????# #??????????????????????????? | | ?????# #??????????????????????????? | | ?????# #??????????????????????????? | | ?????# #??????????????????????????? | | ?????# #??????????????????????????? | | ?????# #??????????????????????????? | | ?????# #??????????????????????????? | | ?????# #??????????????????????????? | | ?????# #??????????????????????????? | | ?????# #??????????????????????????? | | ?##### #####??????????????????????? | | ?# "" "" #??????????????????????? | | ?# " " ##########?????????????? | | ?# ??????????? | | ?# ??????????? | | ?# ??????????? | | ?# ??????????? | +----------------------------------------------------+ Best States ------------- Heat Dissipation 25 Energy Generation 18 Energy Capacity 160 Matter Stores 300 Matter Capacity 300 Sight Range 18 Robot Scan Range 16 Terrain Scan Density 10 Utility Shielding 90 Evasion (%) 72 Targeting Accuracy 5 Offensive Hacking 25 Item Schematics ----------------- None Robot Schematics ------------------ None Fabricated ------------ Nothing Alien Tech Used ----------------- None Achievements -------------- None Challenges ------------ None RPGLIKE | -11 -10 -10 -9 -8 -7 -6 -6 --------- Run | Jun Mat Min Mat Mat Fac Fac Ext Levels Raised 6 | . . . 1 1 2 1 1 XP Earned 12305 | 3000 130 500 1870 1770 1855 2180 1000 XP Spent 11950 | 2800 . . 1700 1350 1600 2800 1700 Upgrades 18 | 5 . . 3 2 2 2 4 Power Slot 1 | 1 . . . . . . . Propulsion Slot 3 | 2 . . . . . 1 . Utility Slot 5 | 1 . . 1 1 1 1 . Weapon Slot 1 | 1 . . . . . . . Inventory Capacity 1 | . . . . 1 . . . Sight Range 2 | . . . . . . . 2 Ranged Accuracy 4 | . . . 2 . . . 2 Hack Attack % 1 | . . . . . 1 . . Protomatter Created 127 | . 41 . 34 . . 52 . Integrity Restored 223 | . . 76 75 . . 72 . Core 195 | . . 76 47 . . 72 . Parts 28 | . . . 28 . . . . Protomatter Decayed 92 | . 41 16 7 . . 28 . Game ------ Seed WaveSuperchargedPick Manual? 0 Play Time 00:21:45 Cumulative 150.3 hours Start 2024.01.03 @ 21:52:40 End 2024.01.03 @ 22:13:36 Sessions 1 Manual Loads 0 Difficulty Rogue Special Mode Winter2019/RPGLIKE Game No. 152 Rogue 152 Adventurer 0 Explorer 0 Win Type - Total 13 Types 11/0/0/1/0/0/1/0/0 Lore% 67 Gallery% 66 Achievement% 67 Wizard Run 0 Options --------- ASCII 0 Keyboard 0 Movement Numpad Keybinds 0 Fullscreen 1 Font 18/SmallcapsGlow Map View 76x50 Tactical HUD 1 Map Filters NONE Filters NONE Steam 1 RUN: 602c048c-af39-4290-8b27-919de27c8c91